bitfinex/quotes_BTCUSD_20251011
["timestamp","ask_amount","ask_price","bid_price","bid_amount"]
[1760175278285,0.56088044,111920.0,111910.0,0.07572]
[1760175279078,0.56088044,111920.0,111900.0,0.10051]
[1760175279079,0.17871503,111910.0,111900.0,0.03369]
[1760175279363,0.17871503,111910.0,111900.0,0.10051]
[1760175279567,0.51876044,111920.0,111900.0,0.10051]
[1760175279747,0.51876044,111920.0,111910.0,0.03337]
[1760175279970,0.51876044,111920.0,111910.0,0.07905]
[1760175280175,0.51869907,111920.0,111910.0,0.14697]
[1760175280578,0.51869907,111920.0,111910.0,0.07905]
[1760175280961,0.56403907,111920.0,111910.0,0.07905]
[1760175281400,0.51869907,111920.0,111910.0,0.07905]
[1760175281558,0.51869907,111920.0,111910.0,0.14697]
[1760175281957,0.56403907,111920.0,111910.0,0.07905]
[1760175282436,0.56520207,111920.0,111910.0,0.07905]
[1760175282826,0.51986207,111920.0,111910.0,0.07905]
[1760175283592,0.51986207,111920.0,111910.0,0.14697]
[1760175283770,0.56520207,111920.0,111910.0,0.07905]
[1760175283977,0.17871503,111910.0,111900.0,0.10161]
[1760175284416,0.178731,111900.0,111890.0,0.10270306]
[1760175284559,0.178731,111900.0,111890.0,0.14838306]
[1760175285389,0.52763402,111920.0,111890.0,0.14838306]
[1760175285591,0.17871531,111910.0,111900.0,0.10129]
[1760175285995,0.17871503,111910.0,111900.0,0.14697]
[1760175286423,0.17871503,111910.0,111900.0,0.14819489]
[1760175287026,0.17871503,111910.0,111900.0,0.14697]
[1760175287427,0.52763402,111920.0,111900.0,0.15407218]
[1760175287624,0.52763402,111920.0,111910.0,0.10129]
[1760175287834,0.52763402,111920.0,111910.0,0.14697]
[1760175289297,0.57297402,111920.0,111910.0,0.07905]
[1760175292110,0.57297402,111920.0,111900.0,0.10129]
[1760175292111,0.17871503,111910.0,111900.0,0.10129]
[1760175292525,0.17871503,111910.0,111900.0,0.14697]
[1760175292787,0.23548503,111910.0,111900.0,0.07905]
[1760175292943,0.178731,111900.0,111890.0,0.03478306]
[1760175293505,0.261951,111900.0,111890.0,0.00109306]
[1760175294083,0.261951,111900.0,111890.0,0.10109301]
[1760175294287,0.27869314,111900.0,111890.0,0.10109301]
[1760175295274,0.261951,111900.0,111890.0,0.10109301]
[1760175296307,0.27869391,111900.0,111890.0,0.10109301]
[1760175297570,0.61869391,111900.0,111890.0,0.10109301]
[1760175297977,0.61869391,111900.0,111890.0,0.00109306]
[1760175299131,0.603951,111900.0,111890.0,0.00109306]
[1760175299286,0.58281073,111900.0,111890.0,0.07567306]
[1760175299488,0.520731,111900.0,111890.0,0.14349306]
[1760175299933,0.5809688,111900.0,111890.0,0.07567306]
[1760175300135,0.5809688,111900.0,111890.0,0.00109306]
[1760175300338,0.5799688,111900.0,111890.0,0.00109306]
[1760175300566,0.5354688,111900.0,111890.0,0.07567306]
[1760175300890,0.518731,111900.0,111890.0,0.07567306]
[1760175301132,0.518731,111900.0,111890.0,0.14349306]
[1760175301320,0.600111,111900.0,111890.0,0.00109306]
[1760175301460,0.61684974,111900.0,111890.0,0.00109306]
[1760175301664,0.562231,111900.0,111890.0,0.07567306]
[1760175301868,0.562231,111900.0,111890.0,0.03322306]
[1760175302086,0.61684866,111900.0,111890.0,0.00109306]
[1760175302260,0.600111,111900.0,111890.0,0.00109306]
[1760175302459,0.61684846,111900.0,111890.0,0.00109306]
[1760175303346,0.600111,111900.0,111890.0,0.00109306]
[1760175305701,0.260111,111900.0,111890.0,0.00109306]
[1760175306762,0.222231,111900.0,111890.0,0.00109306]
[1760175306962,0.222231,111900.0,111890.0,0.04354306]
[1760175307408,0.19014503,111910.0,111890.0,0.14349306]
[1760175307610,0.01143,111910.0,111900.0,0.09995]
[1760175307860,0.18763402,111920.0,111900.0,0.144598]
[1760175308077,0.21511727,111930.0,111910.0,0.03213]
[1760175308242,0.25861727,111930.0,111920.0,0.04245]
[1760175308480,0.18789141,111940.0,111920.0,0.14506692]
[1760175308676,0.0002,111940.0,111930.0,0.03213]
[1760175308814,0.0002,111940.0,111930.0,0.14490425]
[1760175309196,0.22236714,111940.0,111920.0,0.03213]
[1760175309440,0.17869907,111920.0,111910.0,0.03213]
[1760175309657,0.17869907,111920.0,111910.0,0.07458]
[1760175309892,0.17871503,111910.0,111900.0,0.03213]
[1760175310105,0.23265503,111910.0,111900.0,0.17457995]
[1760175310324,0.17869937,111920.0,111900.0,0.24239995]
[1760175310544,0.17869937,111920.0,111910.0,0.10095]
[1760175310792,0.17869937,111920.0,111910.0,0.1434]
[1760175311026,0.17869937,111920.0,111910.0,0.1424]
[1760175311678,0.02744,111930.0,111910.0,0.1424]
[1760175311897,0.54612372,111930.0,111920.0,0.09995]
[1760175312104,0.5461231,111930.0,111920.0,0.07458]
[1760175312471,0.5896231,111930.0,111920.0,0.07458]
[1760175313355,0.17869907,111920.0,111910.0,0.09995]
[1760175313552,0.17869907,111920.0,111910.0,0.03213]
[1760175313796,0.22219907,111920.0,111910.0,0.07458]
[1760175314344,0.17871503,111910.0,111900.0,0.03213]
[1760175314605,0.18915503,111910.0,111900.0,0.03213]
[1760175314833,0.23265503,111910.0,111900.0,0.03213]
[1760175315041,0.23265503,111910.0,111900.0,0.07458]
[1760175315452,0.178731,111900.0,111890.0,0.03308787]
[1760175315661,0.178731,111900.0,111890.0,0.00109306]
[1760175315887,0.222231,111900.0,111890.0,0.00109306]
[1760175316115,0.222231,111900.0,111890.0,0.00049735]
[1760175316504,0.260111,111900.0,111890.0,0.00049735]
[1760175316747,0.600111,111900.0,111890.0,0.1004973]
[1760175316964,0.64698562,111900.0,111890.0,0.00049735]
[1760175317391,0.65165843,111900.0,111890.0,0.00049735]
[1760175317606,0.65165843,111900.0,111890.0,0.00149735]
[1760175318453,0.65165843,111900.0,111890.0,0.00049735]
[1760175318718,0.65265843,111900.0,111890.0,0.00049735]
[1760175319347,0.63693571,111900.0,111890.0,0.00049735]
[1760175319570,0.65364027,111900.0,111890.0,0.00049735]
[1760175320380,0.63693571,111900.0,111890.0,0.00049735]
[1760175320580,0.60678381,111900.0,111890.0,0.00049735]
[1760175323753,0.60678381,111900.0,111890.0,0.00074115]
[1760175324923,0.60678381,111900.0,111890.0,0.00030884]
[1760175325124,0.56890381,111900.0,111890.0,0.00030884]
[1760175325520,0.224231,111900.0,111890.0,0.00030884]
[1760175325717,0.002,111900.0,111890.0,0.14270884]
[1760175325922,0.002,111900.0,111890.0,0.14486737]
[1760175325923,0.180731,111900.0,111890.0,0.14486737]
[1760175326208,0.179731,111900.0,111890.0,0.14270884]
[1760175326389,0.002,111900.0,111890.0,0.14270884]
[1760175326606,0.224221,111900.0,111890.0,0.07488884]
[1760175326835,0.223221,111900.0,111890.0,0.07488884]
[1760175326965,0.223221,111900.0,111890.0,0.00030884]
[1760175327189,0.259671,111900.0,111890.0,0.00055264]
[1760175327388,0.258671,111900.0,111890.0,0.00055264]
[1760175327873,0.599671,111900.0,111890.0,0.00055264]
[1760175328198,0.598671,111900.0,111890.0,0.00055264]
[1760175328599,0.47763,111900.0,111890.0,0.00055264]
[1760175328812,0.44118,111900.0,111890.0,0.00055264]
[1760175329020,0.44118,111900.0,111890.0,0.04307264]
[1760175329218,0.38349,111900.0,111890.0,0.07361264]
[1760175329423,0.518731,111900.0,111890.0,0.13763264]
[1760175330038,0.518731,111900.0,111890.0,0.07361264]
[1760175330446,0.562221,111900.0,111890.0,0.07361264]
[1760175330772,0.562221,111900.0,111890.0,0.00055264]
[1760175331778,0.598671,111900.0,111890.0,0.00055264]
[1760175334616,0.6288229,111900.0,111890.0,0.00055264]
[1760175336116,0.6298229,111900.0,111890.0,0.00055264]
[1760175336511,0.6308229,111900.0,111890.0,0.00055264]
[1760175337570,0.600671,111900.0,111890.0,0.00055264]
[1760175343224,0.61738876,111900.0,111890.0,0.00055264]
[1760175343429,0.64754066,111900.0,111890.0,0.00055264]
[1760175344266,0.65221356,111900.0,111890.0,0.00055264]
[1760175345038,0.70485034,111900.0,111890.0,0.00055264]
[1760175345370,0.66057791,111900.0,111890.0,0.00055264]
[1760175345552,0.62206166,111900.0,111890.0,0.00055264]
[1760175345764,0.51877893,111870.0,111860.0,0.01501566]
[1760175345959,0.58031893,111870.0,111860.0,0.05922173]
[1760175346178,0.29398893,111870.0,111860.0,0.00050607]
[1760175346920,0.29863276,111870.0,111860.0,0.00050607]
[1760175347251,0.28189226,111870.0,111860.0,0.00050607]
[1760175347642,0.29862714,111870.0,111860.0,0.00050607]
[1760175348256,0.63862714,111870.0,111860.0,0.00050607]
[1760175348395,0.4072194,111870.0,111860.0,0.00050607]
[1760175348601,0.58599833,111870.0,111860.0,0.00050607]
[1760175348841,0.58699833,111870.0,111860.0,0.00050607]
[1760175348998,0.58599833,111870.0,111860.0,0.00050607]
[1760175349427,0.58699833,111870.0,111860.0,0.00050607]
[1760175349624,0.58799833,111870.0,111860.0,0.00050607]
[1760175350265,0.61815023,111870.0,111860.0,0.00050607]
[1760175351448,0.61815023,111870.0,111860.0,0.00225163]
[1760175351655,0.58799833,111870.0,111860.0,0.00225163]
[1760175351832,0.57126345,111870.0,111860.0,0.00225163]
[1760175352875,0.57026345,111870.0,111860.0,0.00225163]
[1760175353281,0.57126345,111870.0,111860.0,0.00225163]
[1760175354499,0.57026345,111870.0,111860.0,0.00225163]
[1760175354882,0.57126345,111870.0,111860.0,0.00225163]
[1760175355787,0.52077893,111870.0,111860.0,0.00225163]
[1760175357258,0.56763814,111870.0,111860.0,0.00225163]
[1760175357491,0.56663814,111870.0,111860.0,0.00225163]
[1760175357694,0.56563814,111870.0,111860.0,0.00225163]
[1760175357842,0.56663814,111870.0,111860.0,0.00225163]
[1760175359043,0.53648624,111870.0,111860.0,0.00225163]
[1760175360692,0.56663814,111870.0,111860.0,0.00225163]
[1760175360930,0.53648624,111870.0,111860.0,0.00225163]
[1760175376939,0.56420395,111870.0,111860.0,0.00225163]
[1760175377361,0.59903011,111870.0,111860.0,0.00225163]
[1760175377779,5.80607063,111870.0,111860.0,1e-08]
[1760175377974,5.79768096,111870.0,111860.0,1e-08]
[1760175378177,5.82459013,111870.0,111860.0,1e-08]
[1760175378847,5.82359013,111870.0,111860.0,1e-08]
[1760175379039,5.83397525,111870.0,111860.0,1e-08]
[1760175379954,5.83497525,111870.0,111860.0,1e-08]
[1760175380755,5.84899516,111870.0,111860.0,1e-08]
[1760175382441,5.81695462,111870.0,111860.0,1e-08]
[1760175383778,5.64897052,111870.0,111860.0,1e-08]
[1760175383916,5.6490086,111870.0,111860.0,1e-08]
[1760175384545,5.62209943,111870.0,111860.0,1e-08]
[1760175386990,0.47209944,111870.0,111860.0,1e-08]
[1760175387194,0.44709945,111870.0,111860.0,1e-08]
[1760175387398,0.40292764,111870.0,111860.0,1e-08]
[1760175387801,0.3835996,111870.0,111860.0,1e-08]
[1760175388030,0.4137515,111870.0,111860.0,1e-08]
[1760175388415,0.43307954,111870.0,111860.0,1e-08]
[1760175389025,0.43307409,111870.0,111860.0,1e-08]
[1760175389421,0.45997993,111870.0,111860.0,1e-08]
[1760175392512,0.44065189,111870.0,111860.0,1e-08]
[1760175392682,0.45993857,111870.0,111860.0,1e-08]
[1760175397903,5.50993857,111870.0,111860.0,1e-08]
[1760175398136,5.53493856,111870.0,111860.0,1e-08]
[1760175398365,5.63493855,111870.0,111860.0,1e-08]
[1760175398980,5.66697909,111870.0,111860.0,1e-08]
[1760175399390,5.68099956,111870.0,111860.0,1e-08]
[1760175399850,5.64895902,111870.0,111860.0,1e-08]
[1760175400428,5.68099956,111870.0,111860.0,1e-08]
[1760175401232,5.64895902,111870.0,111860.0,1e-08]
[1760175401431,5.68099956,111870.0,111860.0,1e-08]
[1760175402412,0.47395904,111870.0,111860.0,1e-08]
[1760175402838,0.44380714,111870.0,111860.0,1e-08]
[1760175403001,0.57395903,111870.0,111860.0,1e-08]
[1760175404183,0.57395054,111870.0,111860.0,1e-08]
[1760175404385,0.47395055,111870.0,111860.0,1e-08]
[1760175404627,0.57395054,111870.0,111860.0,1e-08]
[1760175406877,0.60599108,111870.0,111860.0,1e-08]
[1760175407304,0.63099107,111870.0,111860.0,1e-08]
[1760175407615,5.68099107,111870.0,111860.0,1e-08]
[1760175407938,5.48547906,111870.0,111860.0,1e-08]
[1760175408144,5.45343852,111870.0,111860.0,1e-08]
[1760175409262,5.35343853,111870.0,111860.0,1e-08]
[1760175409463,0.37843853,111870.0,111860.0,1e-08]
[1760175409696,0.20583378,111880.0,111860.0,1e-08]
[1760175409903,0.17884042,111840.0,111830.0,0.03204]
[1760175410116,0.17884042,111840.0,111830.0,0.07281179]
[1760175410357,0.17884042,111840.0,111830.0,0.14160098]
[1760175410574,0.1877775,111850.0,111830.0,0.14160098]
[1760175410691,0.17882689,111840.0,111830.0,0.1440013]
[1760175410892,0.17881098,111850.0,111830.0,0.13605179]
[1760175411101,0.17881098,111850.0,111840.0,0.09528]
[1760175411320,0.17881098,111850.0,111840.0,0.1359]
[1760175414808,0.17881098,111850.0,111840.0,0.14162395]
[1760175415019,0.1788109,111850.0,111840.0,0.1359]
[1760175416509,0.17974046,111870.0,111840.0,0.32044787]
[1760175416721,0.17974046,111870.0,111860.0,0.03006]
[1760175416925,0.17974046,111870.0,111860.0,0.0753286]
[1760175417159,0.17974046,111870.0,111860.0,0.1381786]
[1760175417579,0.17974046,111870.0,111860.0,0.13335]
[1760175418669,0.17973708,111870.0,111860.0,0.13859447]
[1760175419512,0.17973708,111870.0,111860.0,0.13335]
[1760175420502,0.00095815,111870.0,111860.0,0.13335]
[1760175420708,0.00095815,111870.0,111860.0,0.23334995]
[1760175420945,0.00095815,111870.0,111860.0,0.439038]
[1760175421098,0.00095815,111870.0,111860.0,0.8091899]
[1760175422159,0.00095815,111870.0,111860.0,0.8101899]
[1760175422582,0.00095815,111870.0,111860.0,0.8091899]
[1760175422780,0.00095815,111870.0,111860.0,0.8111899]
[1760175423199,0.00095815,111870.0,111860.0,0.8101899]
[1760175423610,0.00095815,111870.0,111860.0,0.8111899]
[1760175424707,0.00095815,111870.0,111860.0,0.83618989]
[1760175425460,0.00095815,111870.0,111860.0,0.92571941]
[1760175426463,0.00095815,111870.0,111860.0,1.0257194]
[1760175426660,0.00095815,111870.0,111860.0,0.92571941]
[1760175427272,0.00095815,111870.0,111860.0,0.92471941]
[1760175427474,0.00095815,111870.0,111860.0,1.0247194]
[1760175428020,0.07162362,111930.0,111910.0,0.17870526]
[1760175428137,0.07162362,111930.0,111920.0,0.1359743]
[1760175428801,0.07511277,111930.0,111920.0,0.16285326]
[1760175428996,0.07511277,111930.0,111920.0,0.1646384]
[1760175429196,0.00399562,111930.0,111920.0,0.13775944]
[1760175429405,0.18267872,111930.0,111920.0,0.23775939]
[1760175429682,0.00399562,111930.0,111920.0,0.23434995]
[1760175430159,0.00399562,111930.0,111920.0,0.41304902]
[1760175430457,0.0002,111940.0,111920.0,0.41404902]
[1760175430660,0.00029048,111940.0,111930.0,0.27430129]
[1760175430919,0.00029048,111940.0,111930.0,0.2715931]
[1760175431147,0.00029048,111940.0,111930.0,0.3120331]
[1760175431362,0.00029048,111940.0,111930.0,0.342185]
[1760175431817,0.00029048,111940.0,111930.0,0.44218495]
[1760175432272,0.00029048,111940.0,111930.0,0.46905791]
[1760175432475,0.00029048,111940.0,111930.0,0.47005791]
[1760175433079,0.00029048,111940.0,111930.0,0.46905791]
[1760175433597,0.00029048,111940.0,111930.0,0.80905791]
[1760175433969,0.00029048,111940.0,111930.0,0.8340579]
[1760175434128,0.00029048,111940.0,111930.0,0.8350579]
[1760175434534,0.00029048,111940.0,111930.0,0.8360579]
[1760175434734,0.00029048,111940.0,111930.0,0.8350579]
[1760175434958,0.00029048,111940.0,111930.0,0.8340579]
[1760175435159,0.00029048,111940.0,111930.0,0.8380579]
[1760175436175,0.0008718,111940.0,111930.0,0.8380579]
[1760175438313,0.0008718,111940.0,111930.0,0.93805789]
[1760175438537,0.0008718,111940.0,111930.0,1.02758741]
[1760175439618,0.0008718,111940.0,111930.0,1.02558741]
[1760175440084,0.0008718,111940.0,111930.0,1.02758741]
[1760175440498,0.0008718,111940.0,111930.0,1.42558741]
[1760175440707,0.0008718,111940.0,111930.0,1.42358741]
[1760175440935,0.0008718,111940.0,111930.0,1.42558741]
[1760175441156,0.0008718,111940.0,111930.0,1.42758741]
[1760175443259,0.0008718,111940.0,111930.0,1.02758741]
[1760175444559,0.0008718,111940.0,111930.0,1.04550741]
[1760175447015,0.0008718,111940.0,111930.0,1.02050742]
[1760175447180,0.0008718,111940.0,111930.0,1.42050742]
[1760175447389,0.0008718,111940.0,111930.0,1.01535551]
[1760175447615,0.0008718,111940.0,111930.0,0.92582599]
[1760175447846,0.0008718,111940.0,111930.0,0.485826]
[1760175448241,0.0008718,111940.0,111930.0,0.46082601]
[1760175448445,0.0008718,111940.0,111930.0,0.26422291]
[1760175448675,0.17953894,111940.0,111930.0,0.26422291]
[1760175448885,0.0008718,111940.0,111930.0,0.26422291]
[1760175449089,0.0008718,111940.0,111930.0,0.23534995]
[1760175449090,0.17953894,111940.0,111930.0,0.23534995]
[1760175449459,0.17953894,111940.0,111930.0,0.23634995]
[1760175449793,0.17953894,111940.0,111930.0,0.17349995]
[1760175450113,0.17953894,111940.0,111930.0,0.17149995]
[1760175450541,0.17953894,111940.0,111930.0,0.23774995]
[1760175456416,0.0008718,111940.0,111930.0,0.23774995]
[1760175457296,0.0008718,111940.0,111930.0,0.41643305]
[1760175457907,0.0008718,111940.0,111930.0,0.23774995]
[1760175459567,0.0008718,111940.0,111930.0,0.41643305]
[1760175459760,0.0008718,111940.0,111930.0,0.23774995]
[1760175460453,0.0008718,111940.0,111930.0,0.41643305]
[1760175461807,0.0008718,111940.0,111930.0,0.44658495]
[1760175462046,0.0008718,111940.0,111930.0,0.47345842]
[1760175463775,0.0008718,111940.0,111930.0,0.83845841]
[1760175475210,0.0008718,111940.0,111930.0,0.78330652]
[1760175475365,0.0008718,111940.0,111930.0,0.60462342]
[1760175475593,0.17953894,111940.0,111930.0,0.60462342]
[1760175475791,0.17953894,111940.0,111930.0,0.23774995]
[1760175475995,0.0008718,111940.0,111930.0,0.23774995]
[1760175476208,0.17953894,111940.0,111930.0,0.23774995]
[1760175479836,0.17953894,111940.0,111930.0,0.10199995]
[1760175480329,0.17953894,111940.0,111930.0,0.17306995]
[1760175481148,0.17953894,111940.0,111930.0,0.10199995]
[1760175481784,0.17953894,111940.0,111930.0,0.002]
[1760175481998,0.51953894,111940.0,111930.0,0.002]
[1760175482212,0.55555992,111940.0,111930.0,0.002]
[1760175482442,0.56023095,111940.0,111930.0,0.002]
[1760175482862,0.1786831,111930.0,111920.0,0.00095753]
[1760175483061,0.19541884,111930.0,111920.0,0.00095753]
[1760175484227,0.19539126,111930.0,111920.0,0.00095753]
[1760175484441,0.1786831,111930.0,111920.0,0.00095753]
[1760175486706,0.5186831,111930.0,111920.0,0.04117753]
[1760175487869,0.5186831,111930.0,111920.0,0.00095753]
[1760175488614,0.5186831,111930.0,111920.0,0.07202753]
[1760175490319,0.5186831,111930.0,111920.0,0.00095753]
[1760175490509,0.5186831,111930.0,111920.0,0.04117753]
[1760175490911,0.5186831,111930.0,111920.0,0.00095753]
[1760175491252,0.49696364,111930.0,111920.0,0.00095753]
[1760175491462,0.49696364,111930.0,111920.0,0.04117753]
[1760175492312,0.49696364,111930.0,111920.0,0.00095753]
[1760175492513,0.49696364,111930.0,111920.0,0.04117753]
[1760175493088,0.49696364,111930.0,111920.0,0.07202753]
[1760175496025,0.1786831,111930.0,111920.0,0.07202753]
[1760175496482,0.1786831,111930.0,111920.0,0.00095753]
[1760175497912,0.17849857,111930.0,111920.0,0.00095753]
[1760175499885,0.17849857,111930.0,111920.0,0.13193753]
[1760175500854,0.17849857,111930.0,111920.0,0.07202753]
[1760175501286,0.17849857,111930.0,111920.0,0.03180753]
[1760175501504,0.17849857,111930.0,111920.0,0.00095753]
[1760175502975,0.17953963,111940.0,111920.0,0.3128428]
[1760175503188,0.1786831,111930.0,111920.0,0.23193748]
[1760175503455,0.1786831,111930.0,111920.0,0.10095748]
[1760175504089,0.1786831,111930.0,111920.0,0.23193748]
[1760175504327,0.1786831,111930.0,111920.0,0.17202748]
[1760175505447,0.1786831,111930.0,111920.0,0.17302748]
[1760175508641,0.1786831,111930.0,111920.0,0.23665748]
[1760175509734,0.1786831,111930.0,111920.0,0.17302748]
[1760175509943,0.1786831,111930.0,111920.0,0.23665748]
[1760175510965,0.17953963,111940.0,111920.0,0.41535655]
[1760175511227,0.17953963,111940.0,111930.0,0.0954935]
[1760175511430,0.17953894,111940.0,111930.0,0.0954935]
[1760175511645,0.17953894,111940.0,111930.0,0.1342835]
[1760175512114,0.17953894,111940.0,111930.0,0.13271]
[1760175512329,0.17953894,111940.0,111930.0,0.1362589]
[1760175513418,0.17953894,111940.0,111930.0,0.13802175]
[1760175514088,0.0008718,111940.0,111930.0,0.31670485]
[1760175514297,0.0008718,111940.0,111930.0,0.3113931]
[1760175517590,0.0008718,111940.0,111930.0,0.33826666]
[1760175518258,0.0008718,111940.0,111930.0,0.43926661]
[1760175518665,0.0008718,111940.0,111930.0,0.44026661]
[1760175524832,0.17953894,111940.0,111930.0,0.26158351]
[1760175525049,0.17953894,111940.0,111930.0,0.002]
[1760175526068,0.17953894,111940.0,111930.0,0.07023]
[1760175526249,0.1786831,111930.0,111920.0,0.00095753]
[1760175527096,0.1786831,111930.0,111920.0,0.07018753]
[1760175527304,0.1786831,111930.0,111920.0,0.13164753]
[1760175527525,0.1786831,111930.0,111920.0,0.23264748]
[1760175529260,0.1786831,111930.0,111920.0,0.41134655]
[1760175529685,0.1786831,111930.0,111920.0,0.23264748]
[1760175529903,0.17953894,111940.0,111920.0,0.41134655]
[1760175530115,0.1786831,111930.0,111920.0,0.41134655]
[1760175530321,0.17953894,111940.0,111920.0,0.41134655]
[1760175530535,0.17953894,111940.0,111930.0,0.03043]
[1760175530747,0.17953894,111940.0,111930.0,0.06923]
[1760175531014,0.17953894,111940.0,111930.0,0.31318235]
[1760175531215,0.51953894,111940.0,111930.0,0.13069]
[1760175532306,0.51953894,111940.0,111930.0,0.3093731]
[1760175532721,0.51953894,111940.0,111930.0,0.13069]
[1760175532926,0.3408718,111940.0,111930.0,0.31320258]
[1760175533144,0.51953894,111940.0,111930.0,0.13069]
[1760175536131,0.51953894,111940.0,111930.0,0.13551506]
[1760175537464,0.3408718,111940.0,111930.0,0.3093731]
[1760175538317,0.51953894,111940.0,111930.0,0.3093731]
[1760175538543,0.3408718,111940.0,111930.0,0.3093731]
[1760175539031,0.0008718,111940.0,111930.0,0.339525]
[1760175539247,0.1877522,111970.0,111960.0,0.17863522]
[1760175539248,0.0002,111970.0,111960.0,0.17863522]
[1760175539461,0.0002,111970.0,111960.0,0.31025522]
[1760175540323,0.00194343,111970.0,111960.0,0.31025522]
[1760175540533,0.00194343,111970.0,111960.0,0.41025517]
[1760175541176,0.00194343,111970.0,111960.0,0.44140707]
[1760175541387,0.34194343,111970.0,111960.0,0.44140707]
[1760175542224,0.34194343,111970.0,111960.0,0.44240707]
[1760175542460,0.34194343,111970.0,111960.0,0.44140707]
[1760175542693,0.00194343,111970.0,111960.0,0.44240707]
[1760175543862,0.00194343,111970.0,111960.0,0.46740706]
[1760175544074,0.00194343,111970.0,111960.0,0.53124205]
[1760175544292,0.00194343,111970.0,111960.0,0.46740706]
[1760175544737,0.00194343,111970.0,111960.0,0.63124204]
[1760175544948,0.00194343,111970.0,111960.0,0.65593657]
[1760175545200,0.00194343,111970.0,111960.0,0.99593657]
[1760175545408,0.0002,111990.0,111980.0,0.23375521]
[1760175545629,0.00035167,111990.0,111980.0,0.26352521]
[1760175545878,0.00035167,111990.0,111980.0,0.30282521]
[1760175546104,0.00151358,111990.0,111980.0,0.36537521]
[1760175546331,0.00151358,111990.0,111980.0,0.39223037]
[1760175546529,0.00151358,111990.0,111980.0,0.49223032]
[1760175546811,0.00151358,111990.0,111980.0,0.49423032]
[1760175547466,0.00151358,111990.0,111980.0,0.49523032]
[1760175548113,0.00151358,111990.0,111980.0,0.58475984]
[1760175548969,0.00151358,111990.0,111980.0,0.49523032]
[1760175550780,0.00151358,111990.0,111980.0,0.44007843]
[1760175550988,0.00151358,111990.0,111980.0,0.41322327]
[1760175551196,0.00151358,111990.0,111980.0,0.44337517]
[1760175551396,0.18010095,111990.0,111980.0,0.23461995]
[1760175551621,0.18010095,111990.0,111980.0,0.23261995]
[1760175552169,0.00151358,111990.0,111980.0,0.41222327]
[1760175552377,0.18010095,111990.0,111980.0,0.23361995]
[1760175552586,0.18010095,111990.0,111980.0,0.17106995]
[1760175552806,0.52010095,111990.0,111980.0,0.17106995]
[1760175554028,0.52010095,111990.0,111980.0,0.10199995]
[1760175554479,0.52010095,111990.0,111980.0,0.002]
[1760175554917,0.52010095,111990.0,111980.0,0.001]
[1760175556461,0.17861674,111980.0,111960.0,0.10235075]
[1760175556687,0.17861927,111970.0,111960.0,0.14165075]
[1760175556897,0.17861927,111970.0,111960.0,0.14069362]
[1760175557104,0.17866714,111940.0,111930.0,0.09232]
[1760175557315,0.17866714,111940.0,111930.0,0.06907]
[1760175558194,0.17866714,111940.0,111930.0,0.13162]
[1760175558408,0.51866714,111940.0,111930.0,0.13177167]
[1760175559056,0.51866714,111940.0,111930.0,0.06922167]
[1760175559266,0.51866714,111940.0,111930.0,0.31400632]
[1760175559482,0.51866714,111940.0,111930.0,0.13177167]
[1760175559697,0.51866714,111940.0,111930.0,0.13262172]
[1760175559908,0.51866714,111940.0,111930.0,0.13618375]
[1760175563206,0.51866714,111940.0,111930.0,0.06922167]
[1760175563625,0.51866714,111940.0,111930.0,0.07308508]
[1760175563845,0.51866714,111940.0,111930.0,0.00401508]
[1760175566515,0.51966714,111940.0,111930.0,0.00401508]
[1760175567831,0.54655065,111940.0,111930.0,0.00401508]
[1760175569690,0.51966714,111940.0,111930.0,0.00401508]
[1760175570946,0.51966714,111940.0,111930.0,0.07202508]
[1760175571170,0.001,111940.0,111930.0,0.12869508]
[1760175571378,0.001,111940.0,111930.0,0.30737818]
[1760175571803,0.17966714,111940.0,111930.0,0.40737813]
[1760175572016,0.17966714,111940.0,111930.0,0.22869503]
[1760175572430,0.51966714,111940.0,111930.0,0.22869503]
[1760175572633,0.17966714,111940.0,111930.0,0.22869503]
[1760175572836,0.17866714,111940.0,111930.0,0.22869503]
[1760175573044,0.51866714,111940.0,111930.0,0.17202503]
[1760175573258,0.51866714,111940.0,111930.0,0.13330503]
[1760175573467,0.51866714,111940.0,111930.0,0.14273503]
[1760175573671,0.51866714,111940.0,111930.0,0.17202503]
[1760175574707,0.51866714,111940.0,111930.0,0.17302503]
[1760175575530,0.51866714,111940.0,111930.0,0.10501503]
[1760175576553,0.51866714,111940.0,111930.0,0.00501508]
[1760175577426,0.51866714,111940.0,111930.0,0.00401508]
[1760175579319,0.53531126,111940.0,111930.0,0.00401508]
[1760175584484,0.53531126,111940.0,111930.0,0.04393508]
[1760175584686,0.53531126,111940.0,111930.0,0.07419508]
[1760175584901,0.53531126,111940.0,111930.0,0.13037508]
[1760175585028,0.51866714,111940.0,111930.0,0.07419508]
[1760175585231,0.17866714,111940.0,111930.0,0.13037508]
[1760175585910,0.51866714,111940.0,111930.0,0.13586753]
[1760175586402,0.51866714,111940.0,111930.0,0.07419508]
[1760175586615,0.51866714,111940.0,111930.0,0.13593358]
[1760175587041,0.34,111940.0,111930.0,0.30905818]
[1760175587256,0.51866714,111940.0,111930.0,0.13037508]
[1760175587676,0.51866714,111940.0,111930.0,0.30905818]
[1760175588156,0.34,111940.0,111930.0,0.30905818]
[1760175588357,0.17863522,111960.0,111940.0,0.17865116]
[1760175588566,0.17863522,111960.0,111950.0,0.07613199]
[1760175588760,0.51863522,111960.0,111950.0,0.13501247]
[1760175588973,0.51863522,111960.0,111950.0,0.30771166]
[1760175589186,0.17863522,111960.0,111950.0,0.30771166]
[1760175589398,0.51863522,111960.0,111950.0,0.30771166]
[1760175589804,0.17863522,111960.0,111950.0,0.30771166]
[1760175590245,0.51863522,111960.0,111950.0,0.12906048]
[1760175591086,0.51863522,111960.0,111950.0,0.30771166]
[1760175592145,0.51863522,111960.0,111950.0,0.12906048]
[1760175595435,0.51863522,111960.0,111950.0,0.30771166]
[1760175595848,0.34,111960.0,111950.0,0.30771166]
[1760175596217,0.51863522,111960.0,111950.0,0.30771166]
[1760175596644,0.51863522,111960.0,111950.0,0.12906048]
[1760175597224,0.51863522,111960.0,111950.0,0.07288048]
[1760175597611,0.51863522,111960.0,111950.0,0.00270048]
[1760175598232,0.51863522,111960.0,111950.0,0.04250048]
[1760175598853,0.51863522,111960.0,111950.0,0.00270048]
[1760175599272,0.53531707,111960.0,111950.0,0.00270048]
[1760175601256,0.56546897,111960.0,111950.0,0.00270048]
[1760175601598,0.22546897,111960.0,111950.0,0.00270048]
[1760175601810,0.23013969,111960.0,111950.0,0.00270048]
[1760175602423,0.23013969,111960.0,111950.0,1e-08]
[1760175602634,0.23113969,111960.0,111950.0,1e-08]
[1760175603506,0.57113969,111960.0,111950.0,1e-08]
[1760175603708,0.59036327,111960.0,111950.0,1e-08]
[1760175604561,0.61536455,111960.0,111950.0,1e-08]
[1760175604762,0.62937205,111960.0,111950.0,1e-08]
[1760175604973,0.72937204,111960.0,111950.0,1e-08]